{"text_format":"1","workbook":"xlsx","n_sheets":2,"sheets":["调研结果","结果录入系统"],"not_rendered":{"charts":0,"images":0,"macros":1,"external_links":0,"defined_names":0,"comments":0,"pivot_tables":0},"unopened":[],"bounds":{"document_bytes":16777216,"sheet_cells":100000,"rows_first":2000,"rows_last":500,"rows_between":2000,"halvings":0,"cell_chars":16384,"cell_head_chars":4096},"cells_cut":0,"cells_raw":0,"read":"whole","date_system":"1900"}

{"sheet":"调研结果","index":0,"n_rows":46,"n_cols":33,"rows_kept":46,"cut":false,"hidden":false,"merged":[[24,0,45,0],[0,2,0,8],[0,10,0,16],[0,18,0,24],[2,0,18,0],[0,0,1,0],[0,26,0,32],[24,2,24,8],[24,10,24,16],[24,18,24,24],[24,26,24,32]]}
["每次查看结果前按一次\n",null,"10~25",null,null,null,null,null,null,null,"26~45",null,null,null,null,null,null,null,"46~60",null,null,null,null,null,null,null,"60以上"]
[null,null,"     选项\n题号","A","B","C","D","E","F",null,"     选项\n题号","A","B","C","D","E","F",null,"     选项\n题号","A","B","C","D","E","F",null,"     选项\n题号","A","B","C","D","E","F"]
["按\n年\n龄",null,3,null,null,null,null,null,null,null,3,null,null,null,null,null,null,null,3,null,null,null,null,null,null,null,3]
[null,null,4,null,null,null,null,null,null,null,4,null,null,null,null,null,null,null,4,null,null,null,null,null,null,null,4]
[null,null,5,null,null,null,null,null,null,null,5,null,null,null,null,null,null,null,5,null,null,null,null,null,null,null,5]
[null,null,6,null,null,null,null,null,null,null,6,null,null,null,null,null,null,null,6,null,null,null,null,null,null,null,6]
[null,null,7,null,null,null,null,null,null,null,7,null,null,null,null,null,null,null,7,null,null,null,null,null,null,null,7]
[null,null,8,null,null,null,null,null,null,null,8,null,null,null,null,null,null,null,8,null,null,null,null,null,null,null,8]
[null,null,9,null,null,null,null,null,null,null,9,null,null,null,null,null,null,null,9,null,null,null,null,null,null,null,9]
[null,null,10,null,null,null,null,null,null,null,10,null,null,null,null,null,null,null,10,null,null,null,null,null,null,null,10]
[null,null,11,null,null,null,null,null,null,null,11,null,null,null,null,null,null,null,11,null,null,null,null,null,null,null,11]
[null,null,12,null,null,null,null,null,null,null,12,null,null,null,null,null,null,null,12,null,null,null,null,null,null,null,12]
[null,null,13,null,null,null,null,null,null,null,13,null,null,null,null,null,null,null,13,null,null,null,null,null,null,null,13]
[null,null,14,null,null,null,null,null,null,null,14,null,null,null,null,null,null,null,14,null,null,null,null,null,null,null,14]
[null,null,15,null,null,null,null,null,null,null,15,null,null,null,null,null,null,null,15,null,null,null,null,null,null,null,15]
[null,null,16,null,null,null,null,null,null,null,16,null,null,null,null,null,null,null,16,null,null,null,null,null,null,null,16]
[null,null,17,null,null,null,null,null,null,null,17,null,null,null,null,null,null,null,17,null,null,null,null,null,null,null,17]
[null,null,18,null,null,null,null,null,null,null,18,null,null,null,null,null,null,null,18,null,null,null,null,null,null,null,18]
[null,null,19,null,null,null,null,null,null,null,19,null,null,null,null,null,null,null,19,null,null,null,null,null,null,null,19]
[null,null,20,null,null,null,null,null,null,null,20,null,null,null,null,null,null,null,20,null,null,null,null,null,null,null,20]
[null,null,21,null,null,null,null,null,null,null,21,null,null,null,null,null,null,null,21,null,null,null,null,null,null,null,21]
[null,null,22,null,null,null,null,null,null,null,22,null,null,null,null,null,null,null,22,null,null,null,null,null,null,null,22]
[]
[]
["按\n学\n历",null,"小学",null,null,null,null,null,null,null,"初中",null,null,null,null,null,null,null,"高中",null,null,null,null,null,null,null,"大学及以上"]
[null,null,"     选项\n题号","A","B","C","D","E","F",null,"     选项\n题号","A","B","C","D","E","F",null,"     选项\n题号","A","B","C","D","E","F",null,"     选项\n题号","A","B","C","D","E","F"]
[null,null,3,null,null,null,null,null,null,null,3,null,null,null,null,null,null,null,3,null,null,null,null,null,null,null,3]
[null,null,4,null,null,null,null,null,null,null,4,null,null,null,null,null,null,null,4,null,null,null,null,null,null,null,4]
[null,null,5,null,null,null,null,null,null,null,5,null,null,null,null,null,null,null,5,null,null,null,null,null,null,null,5]
[null,null,6,null,null,null,null,null,null,null,6,null,null,null,null,null,null,null,6,null,null,null,null,null,null,null,6]
[null,null,7,null,null,null,null,null,null,null,7,null,null,null,null,null,null,null,7,null,null,null,null,null,null,null,7]
[null,null,8,null,null,null,null,null,null,null,8,null,null,null,null,null,null,null,8,null,null,null,null,null,null,null,8]
[null,null,9,null,null,null,null,null,null,null,9,null,null,null,null,null,null,null,9,null,null,null,null,null,null,null,9]
[null,null,10,null,null,null,null,null,null,null,10,null,null,null,null,null,null,null,10,null,null,null,null,null,null,null,10]
[null,null,11,null,null,null,null,null,null,null,11,null,null,null,null,null,null,null,11,null,null,null,null,null,null,null,11]
[null,null,12,null,null,null,null,null,null,null,12,null,null,null,null,null,null,null,12,null,null,null,null,null,null,null,12]
[null,null,13,null,null,null,null,null,null,null,13,null,null,null,null,null,null,null,13,null,null,null,null,null,null,null,13]
[null,null,14,null,null,null,null,null,null,null,14,null,null,null,null,null,null,null,14,null,null,null,null,null,null,null,14]
[null,null,15,null,null,null,null,null,null,null,15,null,null,null,null,null,null,null,15,null,null,null,null,null,null,null,15]
[null,null,16,null,null,null,null,null,null,null,16,null,null,null,null,null,null,null,16,null,null,null,null,null,null,null,16]
[null,null,17,null,null,null,null,null,null,null,17,null,null,null,null,null,null,null,17,null,null,null,null,null,null,null,17]
[null,null,18,null,null,null,null,null,null,null,18,null,null,null,null,null,null,null,18,null,null,null,null,null,null,null,18]
[null,null,19,null,null,null,null,null,null,null,19,null,null,null,null,null,null,null,19,null,null,null,null,null,null,null,19]
[null,null,20,null,null,null,null,null,null,null,20,null,null,null,null,null,null,null,20,null,null,null,null,null,null,null,20]
[null,null,21,null,null,null,null,null,null,null,21,null,null,null,null,null,null,null,21,null,null,null,null,null,null,null,21]
[null,null,22,null,null,null,null,null,null,null,22,null,null,null,null,null,null,null,22,null,null,null,null,null,null,null,22]

{"sheet":"结果录入系统","index":1,"n_rows":28,"n_cols":92,"rows_kept":28,"cut":false,"hidden":false,"merged":[[4,23,5,23],[6,85,6,91],[26,13,27,17],[16,15,16,16],[17,14,21,17],[6,27,6,33],[6,35,6,41],[6,43,6,49],[6,51,6,57],[14,23,20,23],[6,61,6,67],[6,69,6,75],[6,77,6,83],[1,27,1,29],[3,27,4,29],[3,2,4,2],[3,4,4,4],[7,13,14,18],[3,6,3,11],[2,13,3,17],[4,13,4,17],[3,5,4,5],[3,3,4,3],[5,3,28,3],[5,5,28,5],[28,6,28,11],[5,6,5,11]]}
[]
[null,null,null,null,null,null,null,null,null,null,null,null,null,null,null,null,null,null,null,null,null,null,null,null,null,null,null,"更新日志"]
[null,null,null,null,null,null,null,null,null,null,null,null,null,"问卷结果录入系统"]
[null,null,"题号",null,"选项录入",null,"实际选项（校对用）",null,null,null,null,null,null,null,null,null,null,null,null,null,null,null,null,null,null,null,null,"Ver1.1(7/12/2019)：\n1.修复录入时录入框清零卡顿BUG。\n2.修改校对选项为空时的显示。\n3.优化报错响应速度。\n4.优化循环代码。\n5.优化UI。"]
[null,null,null,null,null,null,"A","B","C","D","E","F",null,"Ver:1.1",null,null,null,null,null,null,null,null,null,"清零是全清!\n请谨慎使用!",null,{"$f":"AND(Z7:Z28)","v":false}]
[]
[null,null,"1(单)",null,null,null,{"$f":"IF(SEARCH(\"1\",E7&\"1\",1)<=LEN(E7),\"A\",\"\")","v":""},{"$f":"IF(SEARCH(\"2\",E7&\"2\",1)<=LEN(E7),\"B\",\"\")","v":""},{"$f":"IF(SEARCH(\"3\",E7&\"3\",1)<=LEN(E7),\"C\",\"\")","v":""},{"$f":"IF(SEARCH(\"4\",E7&\"4\",1)<=LEN(E7),\"D\",\"\")","v":""},"/","/",null,null,null,null,null,null,null,null,null,null,null,null,null,{"$f":"IF(AND(ISBLANK(E7)=FALSE,COUNT(FIND(MID(E7,ROW(INDIRECT(\"1:\"&LEN(E7))),1),\"1234\"))=LEN(E7),(LEN(E7)-LEN(SUBSTITUTE(E7,\"1\",\"\")))<=1,(LEN(E7)-LEN(SUBSTITUTE(E7,\"2\",\"\")))<=1,(LEN(E7)-LEN(SUBSTITUTE(E7,\"3\",\"\")))<=1,(LEN(E7)-LEN(SUBSTITUTE(E7,\"4\",\"\")))<=1,E7<=4),1,0)","v":0},null,"10~25",null,null,null,null,null,null,null,"26~45",null,null,null,null,null,null,null,"46~60",null,null,null,null,null,null,null,"60以上",null,null,null,null,null,null,null,null,null,"小学",null,null,null,null,null,null,null,"初中",null,null,null,null,null,null,null,"高中",null,null,null,null,null,null,null,"大学及以上"]
[null,null,"2(单)",null,null,null,{"$f":"IF(SEARCH(\"1\",E8&\"1\",1)<=LEN(E8),\"A\",\"\")","v":""},{"$f":"IF(SEARCH(\"2\",E8&\"2\",1)<=LEN(E8),\"B\",\"\")","v":""},{"$f":"IF(SEARCH(\"3\",E8&\"3\",1)<=LEN(E8),\"C\",\"\")","v":""},{"$f":"IF(SEARCH(\"4\",E8&\"4\",1)<=LEN(E8),\"D\",\"\")","v":""},"/","/",null,"  1.若提示“宏已被禁用”，请单击“选项”，选择“启用此内容”后点击“确定”。\n  2.为便于录入，输入由数字代替选项字母，如：选项为“A”则输入“1”，选项为“BCF”则输入“236”，顺序无关。\n  3.每次请于红框第一格开始录入，每输入一次按下回车进入下一项输入。\n  4.输入项会自动检查输入正确性，不可重复选项，选项只能介于1-6，若检查正确，单元格自动填充绿色。\n  5.检查无误后，按下下方“录入”按钮，方可完成录入操作。录入成功后红框内自动清空。",null,null,null,null,null,null,null,null,null,null,null,{"$f":"IF(AND(ISBLANK(E8)=FALSE,COUNT(FIND(MID(E8,ROW(INDIRECT(\"1:\"&LEN(E8))),1),\"1234\"))=LEN(E8),(LEN(E8)-LEN(SUBSTITUTE(E8,\"1\",\"\")))<=1,(LEN(E8)-LEN(SUBSTITUTE(E8,\"2\",\"\")))<=1,(LEN(E8)-LEN(SUBSTITUTE(E8,\"3\",\"\")))<=1,(LEN(E8)-LEN(SUBSTITUTE(E8,\"4\",\"\")))<=1,E8<=4),1,0)","v":0},null,null,"A","B","C","D","E","F",null,null,"A","B","C","D","E","F",null,null,"A","B","C","D","E","F",null,null,"A","B","C","D","E","F",null,null,null,null,"A","B","C","D","E","F",null,null,"A","B","C","D","E","F",null,null,"A","B","C","D","E","F",null,null,"A","B","C","D","E","F"]
[null,null,3,null,null,null,"","","","",{"$f":"IF(SEARCH(\"5\",E9&\"5\",1)<=LEN(E9),\"E\",\"\")","v":""},{"$f":"IF(SEARCH(\"6\",E9&\"6\",1)<=LEN(E9),\"F\",\"\")","v":""},null,null,null,null,null,null,null,null,null,null,null,null,null,{"$f":"IF(AND(ISBLANK(E9)=FALSE,SUBSTITUTE(SUBSTITUTE(SUBSTITUTE(SUBSTITUTE(SUBSTITUTE(SUBSTITUTE(E9,\"6\",\"\"),\"5\",\"\"),\"4\",\"\"),\"3\",\"\"),\"2\",\"\"),\"1\",\"\")=\"\",(LEN(E9)-LEN(SUBSTITUTE(E9,\"1\",\"\")))<=1,(LEN(E9)-LEN(SUBSTITUTE(E9,\"2\",\"\")))<=1,(LEN(E9)-LEN(SUBSTITUTE(E9,\"3\",\"\")))<=1,(LEN(E9)-LEN(SUBSTITUTE(E9,\"4\",\"\")))<=1,(LEN(E9)-LEN(SUBSTITUTE(E9,\"5\",\"\")))<=1,(LEN(E9)-LEN(SUBSTITUTE(E9,\"6\",\"\")))<=1),1,0)","v":0},null,3,null,null,null,null,null,null,null,3,null,null,null,null,null,null,null,3,null,null,null,null,null,null,null,3,null,null,null,null,null,null,null,null,null,3,null,null,null,null,null,null,null,3,null,null,null,null,null,null,null,3,null,null,null,null,null,null,null,3]
[null,null,4,null,null,null,"","","","","","",null,null,null,null,null,null,null,null,null,null,null,null,null,{"$f":"IF(AND(ISBLANK(E10)=FALSE,SUBSTITUTE(SUBSTITUTE(SUBSTITUTE(SUBSTITUTE(SUBSTITUTE(SUBSTITUTE(E10,\"6\",\"\"),\"5\",\"\"),\"4\",\"\"),\"3\",\"\"),\"2\",\"\"),\"1\",\"\")=\"\",(LEN(E10)-LEN(SUBSTITUTE(E10,\"1\",\"\")))<=1,(LEN(E10)-LEN(SUBSTITUTE(E10,\"2\",\"\")))<=1,(LEN(E10)-LEN(SUBSTITUTE(E10,\"3\",\"\")))<=1,(LEN(E10)-LEN(SUBSTITUTE(E10,\"4\",\"\")))<=1,(LEN(E10)-LEN(SUBSTITUTE(E10,\"5\",\"\")))<=1,(LEN(E10)-LEN(SUBSTITUTE(E10,\"6\",\"\")))<=1),1,0)","v":0},null,4,null,null,null,null,null,null,null,4,null,null,null,null,null,null,null,4,null,null,null,null,null,null,null,4,null,null,null,null,null,null,null,null,null,4,null,null,null,null,null,null,null,4,null,null,null,null,null,null,null,4,null,null,null,null,null,null,null,4]
[null,null,5,null,null,null,"","","","","","",null,null,null,null,null,null,null,null,null,null,null,null,null,0,null,5,null,null,null,null,null,null,null,5,null,null,null,null,null,null,null,5,null,null,null,null,null,null,null,5,null,null,null,null,null,null,null,null,null,5,null,null,null,null,null,null,null,5,null,null,null,null,null,null,null,5,null,null,null,null,null,null,null,5]
[null,null,6,null,null,null,"","","","","","",null,null,null,null,null,null,null,null,null,null,null,null,null,0,null,6,null,null,null,null,null,null,null,6,null,null,null,null,null,null,null,6,null,null,null,null,null,null,null,6,null,null,null,null,null,null,null,null,null,6,null,null,null,null,null,null,null,6,null,null,null,null,null,null,null,6,null,null,null,null,null,null,null,6]
[null,null,7,null,null,null,"","","","","","",null,null,null,null,null,null,null,null,null,null,null,null,null,0,null,7,null,null,null,null,null,null,null,7,null,null,null,null,null,null,null,7,null,null,null,null,null,null,null,7,null,null,null,null,null,null,null,null,null,7,null,null,null,null,null,null,null,7,null,null,null,null,null,null,null,7,null,null,null,null,null,null,null,7]
[null,null,8,null,null,null,"","","","","","",null,null,null,null,null,null,null,null,null,null,null,null,null,0,null,8,null,null,null,null,null,null,null,8,null,null,null,null,null,null,null,8,null,null,null,null,null,null,null,8,null,null,null,null,null,null,null,null,null,8,null,null,null,null,null,null,null,8,null,null,null,null,null,null,null,8,null,null,null,null,null,null,null,8]
[null,null,9,null,null,null,"","","","","","",null,null,null,null,null,null,null,null,null,null,null,"隐藏区域内\n\n请勿修改！",null,0,null,9,null,null,null,null,null,null,null,9,null,null,null,null,null,null,null,9,null,null,null,null,null,null,null,9,null,null,null,null,null,null,null,null,null,9,null,null,null,null,null,null,null,9,null,null,null,null,null,null,null,9,null,null,null,null,null,null,null,9]
[null,null,10,null,null,null,"","","","","","",null,null,null,null,null,null,null,null,null,null,null,null,null,0,null,10,null,null,null,null,null,null,null,10,null,null,null,null,null,null,null,10,null,null,null,null,null,null,null,10,null,null,null,null,null,null,null,null,null,10,null,null,null,null,null,null,null,10,null,null,null,null,null,null,null,10,null,null,null,null,null,null,null,10]
[null,null,11,null,null,null,"","","","","","",null,null,null,"录入计数",null,null,null,null,null,null,null,null,null,0,null,11,null,null,null,null,null,null,null,11,null,null,null,null,null,null,null,11,null,null,null,null,null,null,null,11,null,null,null,null,null,null,null,null,null,11,null,null,null,null,null,null,null,11,null,null,null,null,null,null,null,11,null,null,null,null,null,null,null,11]
[null,null,12,null,null,null,"","","","","","",null,null,0,null,null,null,null,null,null,null,null,null,null,0,null,12,null,null,null,null,null,null,null,12,null,null,null,null,null,null,null,12,null,null,null,null,null,null,null,12,null,null,null,null,null,null,null,null,null,12,null,null,null,null,null,null,null,12,null,null,null,null,null,null,null,12,null,null,null,null,null,null,null,12]
[null,null,13,null,null,null,"","","","","","",null,null,null,null,null,null,null,null,null,null,null,null,null,0,null,13,null,null,null,null,null,null,null,13,null,null,null,null,null,null,null,13,null,null,null,null,null,null,null,13,null,null,null,null,null,null,null,null,null,13,null,null,null,null,null,null,null,13,null,null,null,null,null,null,null,13,null,null,null,null,null,null,null,13]
[null,null,14,null,null,null,"","","","","","",null,null,null,null,null,null,null,null,null,null,null,null,null,0,null,14,null,null,null,null,null,null,null,14,null,null,null,null,null,null,null,14,null,null,null,null,null,null,null,14,null,null,null,null,null,null,null,null,null,14,null,null,null,null,null,null,null,14,null,null,null,null,null,null,null,14,null,null,null,null,null,null,null,14]
[null,null,15,null,null,null,"","","","","","",null,null,null,null,null,null,null,null,null,null,null,null,null,0,null,15,null,null,null,null,null,null,null,15,null,null,null,null,null,null,null,15,null,null,null,null,null,null,null,15,null,null,null,null,null,null,null,null,null,15,null,null,null,null,null,null,null,15,null,null,null,null,null,null,null,15,null,null,null,null,null,null,null,15]
[null,null,16,null,null,null,"","","","","","",null,null,null,null,null,null,null,null,null,null,null,null,null,0,null,16,null,null,null,null,null,null,null,16,null,null,null,null,null,null,null,16,null,null,null,null,null,null,null,16,null,null,null,null,null,null,null,null,null,16,null,null,null,null,null,null,null,16,null,null,null,null,null,null,null,16,null,null,null,null,null,null,null,16]
[null,null,17,null,null,null,"","","","","","",null,null,null,null,null,null,null,null,null,null,null,null,null,0,null,17,null,null,null,null,null,null,null,17,null,null,null,null,null,null,null,17,null,null,null,null,null,null,null,17,null,null,null,null,null,null,null,null,null,17,null,null,null,null,null,null,null,17,null,null,null,null,null,null,null,17,null,null,null,null,null,null,null,17]
[null,null,18,null,null,null,"","","","","","",null,null,null,null,null,null,null,null,null,null,null,null,null,0,null,18,null,null,null,null,null,null,null,18,null,null,null,null,null,null,null,18,null,null,null,null,null,null,null,18,null,null,null,null,null,null,null,null,null,18,null,null,null,null,null,null,null,18,null,null,null,null,null,null,null,18,null,null,null,null,null,null,null,18]
[null,null,19,null,null,null,"","","","","","",null,null,null,null,null,null,null,null,null,null,null,null,null,0,null,19,null,null,null,null,null,null,null,19,null,null,null,null,null,null,null,19,null,null,null,null,null,null,null,19,null,null,null,null,null,null,null,null,null,19,null,null,null,null,null,null,null,19,null,null,null,null,null,null,null,19,null,null,null,null,null,null,null,19]
[null,null,20,null,null,null,"","","","","","",null,null,null,null,null,null,null,null,null,null,null,null,null,0,null,20,null,null,null,null,null,null,null,20,null,null,null,null,null,null,null,20,null,null,null,null,null,null,null,20,null,null,null,null,null,null,null,null,null,20,null,null,null,null,null,null,null,20,null,null,null,null,null,null,null,20,null,null,null,null,null,null,null,20]
[null,null,21,null,null,null,"","","","","","",null,"By：Vestin",null,null,null,null,null,null,null,null,null,null,null,0,null,21,null,null,null,null,null,null,null,21,null,null,null,null,null,null,null,21,null,null,null,null,null,null,null,21,null,null,null,null,null,null,null,null,null,21,null,null,null,null,null,null,null,21,null,null,null,null,null,null,null,21,null,null,null,null,null,null,null,21]
[null,null,22,null,null,null,"","","","","","",null,null,null,null,null,null,null,null,null,null,null,null,null,0,null,22,null,null,null,null,null,null,null,22,null,null,null,null,null,null,null,22,null,null,null,null,null,null,null,22,null,null,null,null,null,null,null,null,null,22,null,null,null,null,null,null,null,22,null,null,null,null,null,null,null,22,null,null,null,null,null,null,null,22]